bitfinex/quotes_ETHUSD_20251128
["timestamp","ask_amount","ask_price","bid_price","bid_amount"]
[1764320041251,3.26445336,3063.3,3061.4,0.236]
[1764320041389,0.002,3063.5,3061.4,0.236]
[1764320041390,0.002,3063.5,3062.5,0.1833]
[1764320041885,0.002,3063.5,3062.5,0.6818]
[1764320042101,0.1012,3063.5,3062.5,0.6818]
[1764320042422,0.002,3063.5,3062.6,0.7345]
[1764320042787,0.002,3063.5,3062.7,0.4985]
[1764320043924,0.002,3063.5,3062.8,0.235]
[1764320044295,0.002,3063.5,3062.9,0.4985]
[1764320044498,0.002,3063.5,3063.0,0.235]
[1764320044722,0.002,3063.5,3063.1,0.235]
[1764320044918,0.1808,3063.4,3061.9,0.4985]
[1764320045125,0.0992,3063.2,3061.4,0.4985]
[1764320045311,5.81112272,3062.8,3061.4,0.4985]
[1764320045519,3.26466651,3063.1,3061.5,0.235]
[1764320045694,3.26466651,3063.1,3061.6,0.4985]
[1764320045898,1.05740212,3063.4,3061.6,1.22409411]
[1764320045899,3.26449186,3063.3,3061.6,1.22409411]
[1764320046116,3.26624853,3063.5,3061.7,1.12581998]
[1764320046422,3.26624853,3063.5,3061.8,0.7335]
[1764320046598,6.53049706,3063.5,3061.8,0.7335]
[1764320046798,6.53049706,3063.5,3061.9,0.4985]
[1764320047000,6.53049706,3063.5,3062.0,0.235]
[1764320047213,6.53049706,3063.5,3061.7,1.12581998]
[1764320047214,6.53049706,3063.5,3062.1,0.4985]
[1764320047415,6.53049706,3063.5,3062.1,0.7335]
[1764320047620,0.002,3063.5,3062.2,0.4985]
[1764320047808,0.002,3063.5,3062.2,0.7335]
[1764320048012,0.002,3063.5,3062.2,0.4985]
[1764320048192,0.1808,3063.4,3062.2,0.4985]
[1764320048396,0.1808,3063.4,3062.3,0.235]
[1764320048800,0.1808,3063.4,3062.4,0.234]
[1764320049209,0.002,3063.5,3062.5,0.6818]
[1764320049627,0.002,3063.5,3062.6,0.7325]
[1764320050013,0.002,3063.5,3062.7,0.4985]
[1764320050209,0.002,3063.5,3062.8,0.234]
[1764320050417,0.002,3063.5,3062.7,0.4985]
[1764320050599,0.002,3063.5,3062.5,0.1833]
[1764320050908,0.002,3063.5,3062.6,0.234]
[1764320051106,0.002,3063.5,3062.6,0.6973]
[1764320051339,0.002,3063.5,3062.7,0.234]
[1764320051547,0.002,3063.5,3061.6,0.4633]
[1764320051548,0.96839783,3063.4,3061.6,0.4633]
[1764320051704,5.81112272,3063.1,3061.7,0.234]
[1764320052042,13.36241127,3063.3,3061.7,0.234]
[1764320052043,0.30459783,3063.0,3061.7,0.234]
[1764320052213,0.30459783,3062.9,3061.8,0.4633]
[1764320052411,9.79336008,3063.3,3061.8,0.4633]
[1764320052412,0.30459783,3062.8,3061.8,0.4633]
[1764320052614,0.30459783,3062.7,3061.3,0.1833]
[1764320052804,0.30459783,3062.6,3061.4,0.4633]
[1764320052999,0.30459783,3062.5,3061.5,0.234]
[1764320053312,0.30459783,3062.4,3061.6,0.4633]
[1764320053505,3.57017743,3062.3,3061.6,0.4633]
[1764320053697,0.30459783,3062.2,3061.6,0.4633]
[1764320053904,0.30459783,3062.1,3061.6,0.85966746]
[1764320054103,0.30459783,3062.0,3061.7,0.233]
[1764320054406,0.87660212,3063.3,3061.7,0.233]
[1764320054407,0.30459783,3061.9,3061.7,0.4542]
[1764320054597,0.30459783,3061.8,3061.7,0.4542]
[1764320054804,0.30459783,3061.8,3061.7,0.6872]
[1764320055006,0.30459783,3061.8,3061.7,1.41379411]
[1764320055227,0.30459783,3061.8,3061.7,2.20842672]
[1764320055628,0.30459783,3061.8,3061.7,5.47458604]
[1764320056134,0.1808,3063.4,3061.7,12.00690468]
[1764320056339,3.26445336,3063.3,3061.8,0.4542]
[1764320056540,6.52891922,3063.3,3061.8,0.4542]
[1764320056737,6.52891922,3063.3,3061.9,1.10707454]
[1764320056738,3.26445336,3063.3,3061.9,1.10707454]
[1764320057039,3.26445336,3063.3,3061.9,1.13973399]
[1764320057205,3.26445336,3063.3,3062.0,0.4542]
[1764320057602,3.26445336,3063.3,3062.2,6.53125204]
[1764320058013,3.26445336,3063.3,3062.3,0.4542]
[1764320058640,0.002,3063.5,3062.3,1.1724252]
[1764320058842,3.266278,3063.5,3062.4,0.6872]
[1764320059058,6.530556,3063.5,3062.4,0.6872]
[1764320059339,6.530556,3063.5,3062.5,0.6862]
[1764320059640,0.002,3063.5,3062.6,0.4542]
[1764320059845,0.002,3063.5,3062.2,0.4542]
[1764320060137,0.002,3063.5,3062.7,0.232]
[1764320060717,0.002,3063.5,3062.4,0.4542]
[1764320061444,0.002,3063.5,3062.5,0.232]
[1764320061939,9.79472072,3063.5,3062.1,3.91672378]
[1764320062149,0.4601,3063.4,3062.1,0.651]
[1764320062348,0.4601,3063.4,3062.2,0.232]
[1764320062545,0.0992,3063.3,3062.1,0.651]
[1764320062844,0.4601,3063.2,3062.1,0.1968]
[1764320063046,0.0992,3063.0,3062.2,0.232]
[1764320063220,6.09429377,3063.0,3062.1,0.232]
[1764320063421,6.09429377,3063.0,3061.8,0.232]
[1764320063422,0.4601,3062.9,3061.8,0.232]
[1764320063615,0.87660212,3063.4,3061.9,0.4542]
[1764320063946,1.17145804,3063.8,3063.3,0.72559411]
[1764320064152,2.95131049,3064.7,3063.3,0.72559411]
[1764320064153,0.4601,3065.9,3064.1,0.72559411]
[1764320064355,3.72180475,3065.9,3064.2,0.232]
[1764320064536,0.17043807,3065.9,3064.5,0.84462393]
[1764320064754,0.4601,3066.4,3064.5,0.84462393]
[1764320064755,0.4601,3067.0,3065.1,5.99509377]
[1764320065043,0.002,3067.1,3065.6,0.84462393]
[1764320065044,3.26243581,3067.1,3065.6,0.84462393]
[1764320065258,0.002,3067.1,3065.7,0.67567303]
[1764320065444,0.002,3067.1,3065.8,2.27183603]
[1764320065628,0.002,3067.1,3065.9,0.67567303]
[1764320065946,0.002,3067.1,3066.1,6.52294444]
[1764320066150,0.002,3067.1,3066.2,0.67567303]
[1764320066315,0.002,3067.1,3066.2,0.72559411]
[1764320066522,0.002,3067.1,3066.3,0.90285522]
[1764320066742,0.002,3067.1,3066.3,0.232]
[1764320067419,0.002,3067.1,3065.7,4.10652068]
[1764320067637,0.002,3067.1,3065.9,0.72559411]
[1764320067849,0.002,3067.1,3066.0,3.2615786]
[1764320068031,0.002,3067.1,3066.1,0.232]
[1764320068234,0.002,3067.1,3066.1,0.95759411]
[1764320068456,0.002,3067.1,3066.1,1.70567538]
[1764320069341,0.002,3067.1,3066.1,1.47367538]
[1764320069533,0.002,3067.1,3066.2,0.231]
[1764320069923,0.002,3067.1,3066.3,0.231]
[1764320070153,0.002,3067.1,3065.6,3.98759828]
[1764320070356,0.002,3067.1,3065.7,0.66685109]
[1764320070535,0.002,3067.1,3065.7,0.79166664]
[1764320070954,0.002,3067.1,3065.8,0.231]
[1764320071162,0.002,3067.1,3065.6,0.72559411]
[1764320071323,0.4621,3067.1,3065.7,0.231]
[1764320071528,0.002,3067.1,3065.8,0.231]
[1764320072129,0.002,3067.1,3065.9,3.26168498]
[1764320072422,0.002,3067.1,3066.0,0.72559411]
[1764320072850,0.002,3067.1,3066.0,1.15721075]
[1764320073148,0.002,3067.1,3066.0,0.72559411]
[1764320073675,0.002,3067.1,3066.1,0.231]
[1764320074227,0.002,3067.1,3065.4,0.72559411]
[1764320074449,0.002,3067.1,3065.1,7.25066669]
[1764320074450,0.4621,3067.1,3065.1,7.25066669]
[1764320074649,0.4621,3067.1,3064.7,0.83179882]
[1764320074650,0.5613,3067.1,3064.7,0.83179882]
[1764320074826,0.5613,3067.1,3064.8,3.49380788]
[1764320074827,6.34847479,3067.1,3064.8,3.49380788]
[1764320075152,6.34847479,3067.1,3064.9,0.72559411]
[1764320075454,0.4601,3067.0,3064.8,6.75666353]
[1764320075771,0.4601,3067.0,3064.9,0.72559411]
[1764320076073,0.2892,3066.9,3065.0,0.231]
[1764320076224,3.26072779,3066.8,3065.2,0.72559411]
[1764320076434,0.4601,3066.7,3065.3,0.97806667]
[1764320076680,0.4601,3066.7,3065.3,0.23]
[1764320077264,0.4601,3066.7,3065.4,0.23]
[1764320077753,0.4601,3066.7,3065.2,0.72559411]
[1764320078057,0.4601,3066.7,3065.3,0.23]
[1764320078362,0.4601,3066.7,3065.4,0.23]
[1764320078363,6.5218809,3066.6,3065.4,0.23]
[1764320078724,0.4601,3066.5,3065.4,0.23]
[1764320078956,6.5218809,3066.6,3065.5,0.23]
[1764320079557,0.4601,3066.5,3065.5,0.23]
[1764320079929,0.4601,3066.5,3065.6,0.23]
[1764320080130,0.4601,3066.5,3065.7,0.23]
[1764320080326,6.52230628,3066.4,3065.7,0.23]
[1764320080530,0.4601,3066.5,3065.7,0.23]
[1764320080731,3.26072779,3066.8,3065.7,3.49188379]
[1764320081155,6.52145558,3066.8,3065.7,0.23]
[1764320081355,3.26072779,3066.8,3065.7,3.49184065]
[1764320081835,6.52145558,3066.8,3065.7,0.23]
[1764320082259,6.52145558,3066.8,3064.9,0.72559411]
[1764320082460,0.4979,3066.7,3065.0,0.62884161]
[1764320082674,0.4979,3066.7,3065.0,0.23]
[1764320082865,0.4979,3066.7,3065.0,0.72559411]
[1764320083030,0.5971,3066.7,3065.1,0.229]
[1764320083366,0.30033834,3066.6,3065.1,0.229]
[1764320083934,0.79823834,3066.6,3065.1,0.229]
[1764320084176,0.4979,3066.6,3065.1,0.229]
[1764320084470,3.26115314,3066.4,3065.2,3.26242985]
[1764320084789,6.52230628,3066.4,3065.3,0.229]
[1764320085133,6.52230628,3066.4,3064.6,1.55739293]
[1764320085134,0.4979,3066.3,3064.6,1.55739293]
[1764320085338,0.4979,3066.3,3064.7,7.90492968]
[1764320085534,6.52230628,3066.4,3064.8,1.39354901]
[1764320085752,7.02020628,3066.4,3064.9,0.70058239]
[1764320085954,3.26106976,3066.5,3065.0,0.66800066]
[1764320086143,3.26077941,3066.8,3064.9,0.229]
[1764320086348,0.30103685,3066.7,3065.0,0.66840417]
[1764320086553,6.82291775,3066.6,3065.2,0.72559411]
[1764320086751,0.30103685,3066.5,3065.2,0.72559411]
[1764320086952,0.30103685,3066.4,3065.3,0.229]
[1764320087360,0.30103685,3066.3,3065.3,0.229]
[1764320087556,6.5218809,3066.6,3065.1,3.26253629]
[1764320087557,0.4979,3066.4,3065.1,0.72559411]
[1764320087756,0.4979,3066.4,3063.6,6.199805]
[1764320087757,0.30130078,3066.3,3065.2,0.229]
[1764320088066,0.4979,3066.1,3065.3,0.229]
[1764320088265,0.4979,3066.1,3064.4,7.35828013]
[1764320088573,6.5231572,3066.0,3064.6,3.26306858]
[1764320088776,9.7847358,3066.0,3064.2,4.0952209]
[1764320089072,5.98373869,3065.7,3064.3,0.89812809]
[1764320089281,0.405504,3065.6,3064.4,0.67012809]
[1764320089483,0.4979,3065.6,3064.2,0.229]
[1764320089892,0.4979,3065.6,3063.7,0.83179882]
[1764320089893,0.0992,3065.5,3063.7,0.83179882]
[1764320090044,0.0992,3065.5,3063.8,3.49288458]
[1764320090244,0.4979,3065.5,3063.9,0.67119607]
[1764320090449,0.4979,3065.5,3064.0,0.229]
[1764320090769,9.786651,3065.4,3064.1,0.67119607]
[1764320090953,0.5971,3065.3,3063.7,0.83179882]
[1764320091143,0.5971,3065.3,3063.8,0.229]
[1764320091348,0.5971,3065.3,3063.8,2.22928615]
[1764320091565,0.5971,3065.3,3063.9,0.67189322]
[1764320091873,0.5971,3065.3,3064.0,0.228]
[1764320092175,0.8251,3065.3,3064.1,0.67381743]
[1764320092473,0.8251,3065.3,3064.1,0.001]
[1764320092661,7.0227597,3065.2,3064.1,0.001]
[1764320093063,0.4979,3065.1,3064.1,0.001]
[1764320093260,0.4979,3065.1,3064.2,0.67539324]
[1764320093446,0.4979,3065.1,3064.3,0.67539324]
[1764320093649,0.4979,3065.1,3064.4,0.67539324]
[1764320093847,0.4979,3065.1,3064.1,0.001]
[1764320093848,7.02255956,3065.3,3064.5,0.67531059]
[1764320094050,7.02255956,3065.3,3064.6,0.90331059]
[1764320094273,7.02255956,3065.3,3064.6,0.228]
[1764320094479,0.4979,3065.2,3064.6,0.228]
[1764320094975,3.26247868,3065.2,3064.6,0.228]
[1764320095470,6.52495736,3065.2,3064.1,4.12901486]
[1764320095641,6.52495736,3065.2,3064.2,0.90288479]
[1764320095843,0.4979,3065.1,3064.3,0.67488479]
[1764320096169,0.4979,3065.1,3064.4,0.90288479]
[1764320096357,0.4979,3065.1,3064.4,0.228]
[1764320096970,3.26264274,3065.0,3064.4,0.228]
[1764320097353,0.198,3064.9,3064.4,0.228]
[1764320097969,0.198,3064.9,3064.5,0.228]
[1764320098173,0.198,3064.9,3064.1,3.26458751]
[1764320098174,0.198,3064.9,3064.6,0.228]
[1764320098371,0.198,3064.9,3064.7,0.228]
[1764320099282,3.26285565,3064.8,3064.1,0.001]
[1764320099470,3.95867135,3064.9,3064.2,0.90197584]
[1764320099830,3.95867135,3064.9,3064.3,0.67497584]
[1764320099831,7.2214427,3064.9,3064.3,0.67497584]
[1764320099988,0.80157937,3064.8,3064.1,0.001]
[1764320100152,0.30367937,3064.7,3064.2,0.90227061]
[1764320100356,0.30367937,3064.6,3064.2,0.227]
[1764320100557,0.30367937,3064.5,3064.2,0.227]
[1764320100859,0.30367937,3064.4,3064.3,0.70798825]
[1764320101065,0.30367937,3064.4,3064.3,1.49422975]
[1764320101279,0.30367937,3064.4,3064.3,0.67535437]
[1764320101488,0.30367937,3064.4,3064.3,0.90235437]
[1764320101799,0.30367937,3064.4,3064.3,4.16574241]
[1764320102088,0.30367937,3064.4,3064.3,4.89133652]
[1764320102301,0.198,3065.9,3064.3,4.89133652]
[1764320102302,0.198,3065.9,3064.4,0.72559411]
[1764320102494,0.198,3065.9,3064.7,0.84395566]
[1764320102688,0.198,3065.9,3064.6,0.72559411]
[1764320102689,3.45970142,3065.9,3064.8,1.74631003]
[1764320102850,0.4979,3065.8,3064.9,0.67535437]
[1764320103050,0.4979,3065.8,3065.0,0.67535437]
[1764320103281,6.52379554,3065.7,3065.1,0.90242792]
[1764320103488,3.26189777,3065.7,3065.1,0.227]
[1764320103703,3.7597092,3065.8,3065.1,0.227]
[1764320103905,7.0215184,3065.8,3065.1,0.227]
[1764320104169,0.4979,3065.7,3065.2,0.6756772]
[1764320104368,0.4979,3065.7,3064.7,0.84395566]
[1764320104663,0.4979,3065.7,3064.5,0.227]
[1764320104867,0.4979,3065.7,3064.6,0.90314398]
[1764320105067,0.4979,3065.7,3064.7,0.67614398]
[1764320105265,0.4979,3065.7,3064.8,0.67614398]
[1764320105464,3.2618092,3065.8,3064.9,0.67614398]
[1764320105693,3.2618092,3065.8,3065.0,0.67614398]
[1764320105996,3.2618092,3065.8,3064.7,4.10691137]
[1764320105997,3.4597032,3065.9,3064.7,7.36987348]
[1764320106195,0.198,3065.9,3064.8,1.43560719]
[1764320106378,0.198,3066.2,3064.9,0.67591984]
[1764320106692,3.75937698,3066.1,3065.0,1.7468755]
[1764320106866,3.75937698,3066.1,3065.1,0.67591984]
[1764320107063,7.02085396,3066.1,3065.2,0.67591984]
[1764320107265,7.02085396,3066.1,3065.3,0.67591984]
[1764320107460,0.198,3066.2,3065.4,0.67591984]
[1764320107664,3.45939972,3066.2,3065.5,0.90291984]
[1764320107979,0.4979,3066.1,3065.6,0.90291984]
[1764320108181,0.4979,3066.1,3065.6,0.227]
[1764320108376,0.4979,3066.1,3065.7,0.227]
[1764320108951,0.198,3065.8,3065.3,0.84395566]
[1764320109155,0.198,3065.8,3065.1,1.12527421]
[1764320109156,0.198,3065.8,3065.4,0.90295652]
[1764320109362,0.198,3065.8,3065.5,0.90195652]
[1764320109587,0.198,3065.8,3065.6,0.67595652]
[1764320109781,3.7594607,3066.1,3065.6,0.67595652]
[1764320109983,0.198,3066.2,3065.6,0.67595652]
[1764320109984,3.45937465,3066.2,3065.6,0.67595652]
[1764320110283,0.198,3066.2,3065.6,0.67595652]
[1764320110590,3.45937975,3066.2,3065.6,0.67595652]
[1764320110757,3.45937975,3066.2,3065.7,0.226]
[1764320111088,0.4979,3066.5,3065.7,0.226]
[1764320111089,3.25983341,3066.5,3065.8,0.67598996]
[1764320111285,3.25983341,3066.5,3065.9,0.67598996]
[1764320111490,0.4562,3066.5,3065.7,0.226]
[1764320111697,0.002,3066.2,3065.8,0.67592798]
[1764320111870,0.002,3066.2,3065.7,0.226]
[1764320111871,0.002,3066.2,3065.9,0.67592798]
[1764320112063,0.002,3066.2,3065.7,0.226]
[1764320112264,0.0012,3066.2,3065.8,0.67591691]
[1764320112465,0.0012,3066.2,3065.7,0.226]
[1764320112466,0.0012,3066.2,3065.9,0.67591691]
[1764320112695,0.0012,3066.2,3065.7,0.226]
[1764320112912,0.0012,3066.2,3065.8,0.67596566]
[1764320113108,0.0012,3066.2,3065.9,0.67596566]
[1764320113270,0.0012,3066.2,3065.7,0.226]
[1764320113471,0.0012,3066.2,3065.8,0.67593]
[1764320113794,0.0012,3066.2,3065.9,0.67593]
[1764320114116,0.0012,3066.2,3065.7,0.226]
[1764320114405,0.30434594,3066.1,3065.8,0.67594127]
[1764320114573,0.30434594,3066.0,3065.9,0.67594127]
[1764320115021,0.30434594,3066.0,3065.9,0.87514127]
[1764320115960,0.30434594,3066.0,3065.9,1.10114127]
[1764320116271,0.002,3066.7,3065.9,1.10114127]
[1764320116272,0.002,3066.7,3066.1,0.1992]
[1764320116556,0.002,3066.7,3066.6,0.1992]
[1764320117012,0.002,3066.7,3066.6,1.07434127]
[1764320117450,0.003,3068.2,3067.3,6.22435252]
[1764320117649,0.003,3068.2,3067.4,0.225]
[1764320119014,0.003,3068.2,3067.4,1.11863525]
[1764320119215,0.003,3068.2,3067.5,0.2442]
[1764320119419,0.003,3068.2,3068.1,0.2442]
[1764320119621,0.003,3068.2,3068.1,0.4692]
[1764320119955,0.003,3068.2,3067.4,3.90952192]
[1764320120161,0.003,3068.2,3067.2,3.54948264]
[1764320120162,0.9933,3068.2,3067.2,0.045]
[1764320120318,0.4903,3068.1,3067.3,0.225]
[1764320120648,0.4903,3068.1,3067.2,0.045]
[1764320120857,0.4903,3068.1,3067.3,0.225]
[1764320121215,0.003,3068.2,3067.3,0.225]
[1764320121820,0.003,3068.2,3066.6,0.84183439]
[1764320121821,0.4903,3068.1,3066.7,3.26080495]
[1764320122017,0.4903,3068.1,3066.8,0.225]
[1764320122218,0.4903,3068.1,3066.4,0.2442]
[1764320122443,0.4903,3068.1,3066.5,4.1574409]
[1764320122783,0.003,3068.2,3066.6,0.96979411]
[1764320123082,0.4933,3068.2,3066.7,1.66793497]
[1764320123267,0.4933,3068.2,3066.7,0.99668455]
[1764320123470,0.4933,3068.2,3066.7,1.24088455]
[1764320123676,6.51869234,3068.1,3066.8,3.26072779]
[1764320123993,6.51869234,3068.1,3066.9,0.225]
[1764320124172,6.51869234,3068.1,3066.7,3.26080853]
[1764320124173,0.4903,3068.0,3066.3,3.26125949]
[1764320124351,0.4903,3068.0,3066.0,0.0996]
[1764320124352,6.26195537,3067.3,3066.0,0.0996]
[1764320124556,6.26195537,3067.3,3065.5,0.0996]
[1764320124751,0.4903,3067.2,3065.6,1.17374796]
[1764320124950,0.4903,3067.2,3065.7,1.45167605]
[1764320125151,0.405504,3067.1,3065.5,0.0996]
[1764320125348,0.0992,3067.0,3065.5,0.0996]
[1764320125562,6.52124294,3066.9,3065.6,0.225]
[1764320125786,9.97466441,3066.9,3065.2,3.26239381]
[1764320126089,0.4903,3066.8,3065.1,0.0996]
[1764320126383,0.4903,3066.8,3065.2,0.224]
[1764320126384,0.405504,3066.5,3065.2,0.224]
[1764320126585,6.26195537,3066.1,3065.2,0.224]
[1764320126790,6.26195537,3066.1,3064.4,0.001]
[1764320126791,0.1928,3065.3,3064.4,0.001]
[1764320127098,0.292,3065.3,3064.4,0.001]
[1764320127381,0.4903,3065.2,3064.4,0.001]
[1764320127785,6.52507258,3065.1,3064.4,0.001]
[1764320128149,0.79317504,3065.0,3064.4,0.001]
[1764320128353,0.4903,3065.0,3064.4,0.001]
[1764320129379,0.4903,3065.0,3064.4,0.225]
[1764320129902,0.30287746,3064.9,3064.4,0.001]
[1764320130116,0.79317746,3064.9,3064.4,0.001]
[1764320130299,0.4903,3064.9,3064.4,0.001]
[1764320130477,3.26264477,3065.0,3064.4,0.001]
[1764320130677,6.52528954,3065.0,3064.4,0.001]
[1764320130877,6.52528954,3065.0,3064.3,0.20272]
[1764320131700,6.52528954,3065.0,3064.3,0.224]
[1764320132003,0.4903,3064.9,3064.1,0.001]
[1764320132197,0.4903,3064.9,3064.1,0.225]
[1764320132387,0.4903,3064.9,3064.1,0.27]
[1764320132975,0.4903,3064.9,3064.1,0.001]
[1764320133181,0.4903,3064.9,3064.1,0.225]
[1764320133903,6.5257113,3064.8,3064.1,0.001]
[1764320134308,0.4903,3064.7,3064.1,0.001]
[1764320135914,3.26306858,3064.6,3064.1,0.001]
[1764320136093,6.52613716,3064.6,3064.1,0.001]
[1764320136286,0.4903,3064.5,3064.1,0.001]
[1764320136486,0.4895,3064.5,3064.1,0.001]
[1764320138127,3.26299229,3064.7,3064.1,0.001]
[1764320138328,6.52604459,3064.7,3064.1,0.001]
[1764320138529,0.5,3064.2,3064.1,0.001]
[1764320139027,0.9903,3064.2,3064.1,0.001]
[1764320139838,1.39156481,3064.2,3064.1,0.001]
[1764320140043,1.79706881,3064.2,3064.1,0.001]
[1764320140329,0.405504,3064.1,3062.1,0.245]
[1764320140557,0.0992,3063.5,3062.2,0.224]
[1764320140715,0.0992,3063.5,3062.3,0.224]
[1764320140915,0.6766,3063.4,3062.4,0.03265412]
[1764320141416,0.1979,3063.4,3062.4,0.03265412]
[1764320141618,0.1979,3063.7,3062.5,0.245]
[1764320142017,0.1979,3063.7,3062.6,0.224]
[1764320142347,6.52826738,3063.6,3062.6,3.48915739]
[1764320142723,0.4787,3063.5,3062.6,0.224]
[1764320143123,0.4787,3063.5,3062.0,0.3446]
[1764320143347,0.4787,3063.5,3062.1,3.48968774]
[1764320143655,0.4787,3063.5,3062.2,0.224]
[1764320143816,0.4787,3063.5,3062.2,0.25665626]
[1764320144016,0.4787,3063.5,3062.2,0.224]
[1764320144340,9.7930404,3063.4,3062.2,0.224]
[1764320144727,0.4787,3063.3,3062.2,0.224]
[1764320144927,0.4787,3063.3,3062.3,0.03265519]
[1764320145140,0.4787,3063.3,3062.2,0.469]
[1764320145555,0.4219,3063.7,3062.3,0.27765519]
[1764320145737,6.94995954,3063.7,3062.3,0.27765519]
[1764320145942,0.4219,3063.7,3062.3,0.27765519]
[1764320146154,0.1979,3063.7,3062.3,0.27765519]
[1764320146361,3.46161578,3064.0,3062.4,9.79623822]
[1764320146544,0.1979,3064.0,3062.5,1.73298345]
[1764320146731,0.4787,3063.9,3062.6,0.25665199]
[1764320147061,0.4787,3063.9,3062.6,0.50165199]
[1764320147430,0.4787,3063.9,3062.6,0.469]
[1764320147626,0.4787,3063.9,3062.6,1.34228089]
[1764320147827,0.4787,3063.9,3062.7,0.224]
[1764320148067,0.4787,3063.9,3062.7,0.25665092]
[1764320148361,6.52784124,3063.8,3062.8,3.26498628]
[1764320148664,3.26384855,3063.9,3062.9,0.03264879]
[1764320148831,7.0063971,3063.9,3062.7,3.26504692]
[1764320149163,7.0063971,3063.9,3062.9,0.224]
[1764320149963,0.4787,3063.8,3062.9,0.224]
[1764320150365,3.26402715,3063.7,3063.0,0.224]
[1764320150572,6.5280543,3063.7,3063.0,0.224]
[1764320151362,3.26402715,3063.7,3063.0,0.224]
[1764320151566,0.1979,3064.0,3063.1,6.87393302]
[1764320151730,0.1979,3064.0,3063.1,0.3446]
[1764320151931,0.4787,3063.9,3062.7,1.0520988]
[1764320152137,0.4787,3063.9,3062.8,0.224]
[1764320152367,6.5280543,3063.7,3062.7,0.72559411]
[1764320152530,0.30259002,3063.6,3062.5,3.51026393]
[1764320152735,0.30259002,3063.6,3062.6,0.224]
[1764320152736,0.30259002,3063.5,3062.6,0.224]
[1764320153144,0.30259002,3063.5,3062.7,0.224]
[1764320153346,0.30259002,3063.4,3062.7,0.224]
[1764320153559,0.4787,3063.6,3062.8,0.224]
[1764320153756,0.3031333,3063.5,3062.8,0.224]
[1764320153967,0.3031333,3063.4,3062.8,0.224]
[1764320154166,0.3031333,3063.3,3062.8,0.224]
[1764320154336,0.3031333,3063.2,3062.8,0.224]
[1764320154539,0.3031333,3063.1,3062.5,0.03265306]
[1764320154740,3.26443263,3063.4,3062.6,0.9006676]
[1764320155045,0.30372792,3063.3,3062.7,0.6766676]
[1764320155251,0.30372792,3063.2,3062.7,0.6766676]
[1764320155463,0.30372792,3063.1,3062.8,0.9006676]
[1764320155661,0.30372792,3063.0,3062.9,0.6766676]
[1764320155851,0.30372792,3063.0,3062.7,0.224]
[1764320156056,0.30372792,3062.9,3062.7,0.224]
[1764320156377,6.5287012,3063.4,3062.7,0.224]
[1764320156378,0.30372792,3062.8,3062.7,0.224]
[1764320156537,0.30372792,3062.8,3062.7,0.67830344]
[1764320156738,0.30372792,3062.8,3062.7,0.90230344]
[1764320156938,4.4979142,3062.8,3062.7,0.67830344]
[1764320157160,4.4979142,3062.8,3062.3,0.001]
[1764320157161,7.76290048,3062.8,3062.3,0.001]
[1764320157366,0.78242792,3062.7,3062.3,0.225]
[1764320157563,0.30372792,3062.6,3062.3,0.001]
[1764320157740,0.1979,3062.9,3062.3,0.225]
[1764320157741,0.30372792,3062.5,3062.3,0.225]
[1764320158066,0.30372792,3062.4,3062.3,0.225]
[1764320158270,0.30372792,3062.4,3062.3,0.001]
[1764320158471,0.30372792,3062.4,3062.3,0.90360128]
[1764320158840,0.30372792,3062.4,3062.3,0.67960128]
[1764320159037,3.56914066,3062.4,3062.3,0.67960128]
[1764320159344,3.56914066,3062.4,3062.3,0.001]
[1764320159345,4.49834066,3062.4,3062.3,0.001]
[1764320159551,3.56914066,3062.4,3062.3,0.001]
[1764320159749,4.49834066,3062.4,3062.3,0.001]
[1764320160354,1.23292792,3062.4,3062.3,0.001]
[1764320160553,4.49754066,3062.4,3062.3,0.001]
[1764320161368,4.49754066,3062.4,3061.9,0.001]
[1764320161369,0.0992,3062.2,3061.9,0.001]
[1764320161568,0.4505,3062.0,3061.9,0.001]
[1764320162486,0.9292,3062.0,3061.9,0.001]
[1764320163177,10.02023822,3062.4,3061.9,0.001]
[1764320163178,6.53110588,3062.3,3061.9,0.001]
[1764320163384,0.4505,3062.0,3061.9,0.001]
[1764320163974,0.9292,3062.0,3061.9,0.001]
[1764320164567,1.334704,3062.0,3061.9,0.001]
[1764320165276,4.82454332,3062.0,3061.9,0.001]
[1764320165672,4.92374332,3062.0,3061.9,0.001]
[1764320166273,0.504704,3061.9,3061.8,0.001]
[1764320166475,0.405504,3061.7,3061.6,0.001]
[1764320166677,0.405504,3061.7,3060.1,0.001]
[1764320166678,6.09059041,3061.5,3060.1,0.001]
[1764320166877,0.6428,3060.6,3060.1,0.001]
[1764320167076,3.9101332,3060.6,3060.1,0.001]
[1764320167282,4.3888332,3060.6,3060.1,0.001]
[1764320167492,4.4880332,3060.6,3060.1,0.001]
[1764320167691,4.7120332,3060.6,3060.1,0.001]
[1764320167902,5.1175372,3060.6,3060.1,0.001]
[1764320168268,5.1175372,3060.6,3058.5,0.8458345]
[1764320168269,1.17609411,3060.1,3058.5,0.8458345]
[1764320168568,0.4505,3059.1,3058.2,0.224]
[1764320168771,5.99139041,3060.2,3059.0,0.249]
[1764320168972,0.0992,3060.0,3058.2,0.97459411]
[1764320169162,0.0992,3059.7,3058.3,1.11331111]
[1764320169363,5.99139041,3059.8,3058.4,0.25669683]
[1764320169664,0.5779,3059.7,3058.5,0.224]
[1764320169861,0.5779,3059.7,3058.2,0.1016]
[1764320169862,0.7027,3059.7,3058.2,0.1016]
[1764320170086,0.7027,3059.7,3057.4,1.68524378]
[1764320170087,6.09059041,3059.2,3057.7,0.224]
[1764320170262,0.0992,3059.5,3057.7,0.224]
[1764320170464,0.0992,3059.5,3057.8,0.249]